bitfinex-derivatives/quotes_BTCF0:USTF0_20250911
["timestamp","ask_amount","ask_price","bid_price","bid_amount"]
[1757562986030,0.03473,114430.0,114420.0,0.66883176]
[1757562986430,0.03473,114430.0,114420.0,0.39673]
[1757562986931,0.03473,114430.0,114420.0,0.66883176]
[1757562987129,0.03473,114430.0,114420.0,0.66983176]
[1757562988135,0.42078088,114430.0,114420.0,0.004]
[1757562988436,0.42078088,114430.0,114420.0,0.14005088]
[1757562988736,0.42078088,114430.0,114420.0,0.13705088]
[1757562989837,1.23070088,114430.0,114420.0,0.13705088]
[1757562990130,1.09465,114430.0,114420.0,0.15998088]
[1757562990332,0.84453,114430.0,114420.0,0.29603176]
[1757562990727,0.84453,114430.0,114420.0,0.30603176]
[1757562990931,0.84453,114430.0,114420.0,0.03393]
[1757562991129,0.84453,114430.0,114420.0,0.30603176]
[1757562992526,0.84425,114430.0,114420.0,0.30603176]
[1757562992822,0.84425,114430.0,114420.0,0.011]
[1757562993025,0.84425,114430.0,114420.0,0.27310176]
[1757562993223,0.84425,114430.0,114420.0,0.65683176]
[1757562993224,0.03473,114430.0,114420.0,0.65683176]
[1757562993525,0.84809,114430.0,114420.0,0.38773]
[1757562993930,0.84809,114430.0,114420.0,0.65983176]
[1757562995138,0.84809,114430.0,114420.0,0.66983176]
[1757562995739,0.84817,114430.0,114420.0,0.66983176]
[1757562996241,0.03473,114430.0,114420.0,0.66983176]
[1757562996539,0.02207,114440.0,114430.0,0.123057]
[1757562996732,0.83815,114450.0,114440.0,0.03569]
[1757562996929,0.83815,114450.0,114440.0,0.66859176]
[1757562997327,0.85081,114450.0,114440.0,0.38373]
[1757562997536,0.85081,114450.0,114440.0,0.65583176]
[1757562997830,0.98686088,114450.0,114440.0,0.15898088]
[1757562998231,0.85081,114450.0,114440.0,0.02293]
[1757562998432,0.98686088,114450.0,114440.0,0.15898088]
[1757562998644,0.85081,114450.0,114440.0,0.16898088]
[1757562998837,0.98686088,114450.0,114440.0,0.16898088]
[1757562999139,0.98686088,114450.0,114440.0,0.24579383]
[1757562999740,1.75382611,114450.0,114430.0,0.002]
[1757562999934,0.39553,114440.0,114430.0,0.002]
[1757563000240,0.53158088,114440.0,114430.0,0.002]
[1757563000540,0.53158088,114440.0,114430.0,0.13805088]
[1757563000840,0.39553,114440.0,114430.0,0.13805088]
[1757563001338,0.53158088,114440.0,114430.0,0.13805088]
[1757563001532,0.39553,114440.0,114430.0,0.13805088]
[1757563001732,1.35506088,114440.0,114430.0,0.16098088]
[1757563002240,1.21901,114440.0,114430.0,0.16098088]
[1757563002441,1.21901,114440.0,114430.0,0.08714826]
[1757563002741,1.35506088,114440.0,114430.0,0.22319914]
[1757563003342,1.35506088,114440.0,114430.0,0.16098088]
[1757563003544,1.42321937,114440.0,114430.0,0.16098088]
[1757563003844,1.42321937,114440.0,114430.0,0.15898088]
[1757563004239,1.55927025,114440.0,114430.0,0.15898088]
[1757563004545,1.42321937,114440.0,114430.0,0.15898088]
[1757563004946,1.28716849,114440.0,114430.0,0.22120749]
[1757563005146,0.46368849,114440.0,114430.0,0.22120749]
[1757563005346,1.42341937,114440.0,114430.0,0.22120749]
[1757563005846,1.42341937,114440.0,114430.0,0.08515661]
[1757563006048,0.46368849,114440.0,114430.0,0.22120749]
[1757563006347,1.42349937,114440.0,114430.0,0.08515661]
[1757563006550,1.42349937,114440.0,114430.0,0.22120749]
[1757563006847,1.28744849,114440.0,114430.0,0.22120749]
[1757563007147,0.03473,114430.0,114420.0,0.10847295]
[1757563007456,0.17078088,114430.0,114420.0,0.03166]
[1757563007950,0.17078088,114430.0,114420.0,0.10847295]
[1757563008344,0.17078088,114430.0,114420.0,0.03166]
[1757563008543,0.53158088,114430.0,114420.0,0.08554295]
[1757563009954,0.78158088,114430.0,114420.0,0.08554295]
[1757563010146,0.91763176,114430.0,114420.0,0.07098488]
[1757563010453,2.67979176,114430.0,114420.0,0.07098488]
[1757563010747,2.40769,114430.0,114420.0,0.07098488]
[1757563011050,2.67979176,114430.0,114420.0,0.00873]
[1757563011248,2.67979176,114430.0,114420.0,0.01173]
[1757563011649,2.67979176,114430.0,114420.0,0.01273]
[1757563012449,2.54374088,114430.0,114420.0,0.01273]
[1757563013957,2.67979176,114430.0,114420.0,0.01273]
[1757563014858,0.01272,114420.0,114410.0,0.06225488]
[1757563015060,3.00414176,114420.0,114410.0,0.06225488]
[1757563017256,3.00394176,114420.0,114410.0,0.06225488]
[1757563018061,3.00394176,114420.0,114410.0,0.06825488]
[1757563018261,3.25394176,114420.0,114410.0,0.06825488]
[1757563019550,2.98184,114420.0,114410.0,0.06825488]
[1757563020169,3.25394176,114420.0,114410.0,0.06825488]
[1757563020358,2.98184,114420.0,114410.0,0.06825488]
[1757563020665,3.25394176,114420.0,114410.0,0.06825488]
[1757563020864,3.25394176,114420.0,114410.0,0.006]
[1757563021267,3.25394176,114420.0,114390.0,0.21286383]
[1757563021268,3.38999264,114420.0,114390.0,0.07081295]
[1757563021565,0.99370176,114400.0,114380.0,0.0126]
[1757563021759,1.33713088,114390.0,114380.0,0.0126]
[1757563022066,1.33713088,114390.0,114380.0,0.17165088]
[1757563023466,1.20108,114390.0,114380.0,0.0356]
[1757563023862,1.33713088,114390.0,114380.0,0.0126]
[1757563024361,1.34580663,114390.0,114380.0,0.0126]
[1757563024971,0.50552663,114390.0,114380.0,0.0126]
[1757563025162,0.50552663,114390.0,114380.0,0.17165088]
[1757563025362,1.34520663,114390.0,114380.0,0.17165088]
[1757563025557,0.38117838,114400.0,114390.0,0.0126]
[1757563025759,0.38117838,114400.0,114390.0,0.17165088]
[1757563025760,1.22061838,114400.0,114390.0,0.17165088]
[1757563026264,0.02037838,114400.0,114390.0,0.17165088]
[1757563026458,0.85965838,114400.0,114390.0,1.00589936]
[1757563026658,0.02037838,114400.0,114390.0,1.00589936]
[1757563026862,0.85965838,114400.0,114390.0,1.56589936]
[1757563027068,0.85965838,114400.0,114390.0,1.11511713]
[1757563027564,0.02037838,114400.0,114390.0,1.66511713]
[1757563027768,0.85973838,114400.0,114390.0,1.55589936]
[1757563027968,0.83936,114400.0,114390.0,1.55589936]
[1757563028169,0.83936,114400.0,114390.0,1.66511713]
[1757563028366,2.12296,114430.0,114420.0,0.0126]
[1757563028570,2.60176,114430.0,114420.0,0.66850176]
[1757563028960,4.23781088,114430.0,114420.0,0.3964]
[1757563029167,4.59861088,114430.0,114420.0,0.0126]
[1757563030274,4.59861088,114430.0,114420.0,0.0902661]
[1757563030669,4.46256,114430.0,114420.0,0.0902661]
[1757563030970,4.59861088,114430.0,114420.0,0.22631698]
[1757563031174,4.59861088,114430.0,114420.0,0.14865088]
[1757563031365,4.59861088,114430.0,114420.0,0.0902661]
[1757563031561,4.59861088,114430.0,114420.0,0.22631698]
[1757563031764,4.59861088,114430.0,114420.0,0.0902661]
[1757563032071,4.59861088,114430.0,114420.0,0.22631698]
[1757563032271,4.59861088,114430.0,114420.0,0.14865088]
[1757563032572,4.55332402,114430.0,114420.0,0.0126]
[1757563032975,4.46256,114430.0,114420.0,0.0126]
[1757563033174,4.55332402,114430.0,114420.0,0.0126]
[1757563033375,4.55332402,114430.0,114420.0,0.0902661]
[1757563036274,4.46256,114430.0,114420.0,0.0902661]
[1757563036474,4.55332402,114430.0,114420.0,0.0902661]
[1757563036676,4.46256,114430.0,114420.0,0.0902661]
[1757563036871,4.55332402,114430.0,114420.0,0.0902661]
[1757563037866,4.55332402,114430.0,114420.0,0.0776661]
[1757563038674,3.05332402,114430.0,114420.0,0.0776661]
[1757563039081,2.96256,114430.0,114420.0,0.0776661]
[1757563039277,2.21372402,114430.0,114420.0,0.0902661]
[1757563039481,3.04952402,114430.0,114420.0,0.0902661]
[1757563039877,3.04952402,114430.0,114420.0,0.1132661]
[1757563040076,2.95876,114430.0,114420.0,0.1132661]
[1757563040279,2.68872402,114430.0,114420.0,0.1132661]
[1757563040586,2.68956402,114430.0,114420.0,0.1132661]
[1757563040881,3.05036402,114430.0,114420.0,0.0356]
[1757563041382,2.9596,114430.0,114420.0,0.0356]
[1757563041569,2.59848,114430.0,114420.0,0.12636402]
[1757563041771,2.598,114430.0,114420.0,0.46712804]
[1757563042282,2.598,114430.0,114420.0,0.37636402]
[1757563043081,2.598,114430.0,114420.0,0.62636402]
[1757563044173,2.598,114430.0,114420.0,0.70410083]
[1757563045481,2.598,114430.0,114420.0,0.61333681]
[1757563045677,2.59728,114430.0,114420.0,0.62636402]
[1757563045886,2.59728,114430.0,114420.0,0.71712804]
[1757563046178,0.83512,114430.0,114420.0,0.71712804]
[1757563046383,0.83512,114430.0,114420.0,0.82634581]
[1757563046783,0.83512,114430.0,114420.0,0.73558179]
[1757563047282,0.83512,114430.0,114420.0,0.98716402]
[1757563047984,0.83512,114430.0,114420.0,1.09638179]
[1757563048787,0.83512,114430.0,114420.0,1.00561777]
[1757563048986,0.83512,114430.0,114420.0,1.09638179]
[1757563049688,0.83512,114430.0,114420.0,1.00561777]
[1757563049888,0.83512,114430.0,114420.0,1.09638179]
[1757563050589,0.83512,114430.0,114420.0,1.18375649]
[1757563051090,0.83512,114430.0,114420.0,1.07453872]
[1757563051291,0.02011435,114450.0,114440.0,0.0348]
[1757563051488,0.8326,114450.0,114440.0,1.27370521]
[1757563051788,0.3822008,114480.0,114470.0,0.0348]
[1757563051979,1.39616884,114480.0,114470.0,0.11242598]
[1757563052184,1.39616884,114480.0,114470.0,0.07762598]
[1757563052385,1.39616884,114480.0,114460.0,0.11242598]
[1757563052588,0.45156402,114470.0,114460.0,0.09033598]
[1757563053091,0.46037368,114470.0,114460.0,0.09033598]
[1757563053593,0.71037368,114470.0,114460.0,0.07762598]
[1757563054795,0.71337368,114470.0,114460.0,0.07762598]
[1757563055695,0.71537368,114470.0,114460.0,0.07762598]
[1757563056098,0.78352147,114470.0,114460.0,0.07762598]
[1757563057198,0.78352147,114470.0,114450.0,0.01271]
[1757563057199,0.87428549,114470.0,114450.0,0.09033598]
[1757563057404,1.30406578,114460.0,114450.0,0.09033598]
[1757563057992,1.3948298,114460.0,114450.0,0.09033598]
[1757563058194,1.30406578,114460.0,114450.0,0.09033598]
[1757563058489,1.6448298,114460.0,114450.0,0.09033598]
[1757563058992,1.46330176,114460.0,114450.0,0.09033598]
[1757563059195,0.63154176,114460.0,114450.0,0.09033598]
[1757563059497,1.3936298,114460.0,114450.0,0.09033598]
[1757563059687,1.21210176,114460.0,114440.0,0.19901235]
[1757563060000,0.09076402,114450.0,114440.0,0.09033598]
[1757563060201,0.09076402,114450.0,114440.0,0.11242598]
[1757563060700,0.09076402,114450.0,114440.0,0.0348]
[1757563061310,0.09076402,114450.0,114440.0,0.12556402]
[1757563061698,1.30386578,114460.0,114440.0,0.0348]
[1757563062000,1.30386578,114460.0,114450.0,0.07767851]
[1757563062194,1.3946298,114460.0,114440.0,0.20324253]
[1757563062396,1.30586578,114460.0,114440.0,0.20324253]
[1757563063098,0.09076402,114450.0,114440.0,0.09038851]
[1757563063299,0.09076402,114450.0,114440.0,0.11247851]
[1757563063801,1.21510176,114460.0,114450.0,0.01271]
[1757563064101,1.3956298,114460.0,114450.0,0.01271]
[1757563064500,0.5650698,114460.0,114450.0,0.01271]
[1757563064696,1.21786176,114460.0,114450.0,0.01271]
[1757563064901,1.3993898,114460.0,114450.0,0.01271]
[1757563065295,1.4003898,114460.0,114440.0,0.20360253]
[1757563065601,0.45156402,114450.0,114440.0,0.01307]
[1757563066002,0.45156402,114450.0,114440.0,0.03516]
[1757563066605,0.45256402,114450.0,114440.0,0.03516]
[1757563067009,0.3618,114450.0,114440.0,0.03516]
[1757563067205,0.45256402,114450.0,114440.0,0.03516]
[1757563067408,0.45256402,114450.0,114440.0,0.11283851]
[1757563067706,0.3618,114450.0,114440.0,0.09074851]
[1757563067896,0.45256402,114450.0,114440.0,0.09074851]
[1757563068097,0.45256402,114450.0,114440.0,0.11283851]
[1757563068296,0.83452,114450.0,114440.0,0.54436655]
[1757563068503,0.83452,114450.0,114440.0,0.72363851]
[1757563068702,0.83452,114450.0,114440.0,0.81440253]
[1757563069097,0.83552,114450.0,114440.0,0.81440253]
[1757563069497,0.83552,114450.0,114440.0,0.72363851]
[1757563069697,0.83552,114450.0,114440.0,0.81440253]
[1757563070306,0.83552,114450.0,114440.0,1.01440253]
[1757563070498,0.83552,114450.0,114440.0,0.56283851]
[1757563070707,0.83492,114450.0,114440.0,0.65360253]
[1757563071301,0.83492,114450.0,114440.0,0.40360253]
[1757563071603,1.19572,114450.0,114440.0,0.65360253]
[1757563072415,1.19572,114450.0,114440.0,0.56283851]
[1757563072606,1.19572,114450.0,114440.0,0.65360253]
[1757563073401,1.19572,114450.0,114440.0,0.57592402]
[1757563073605,1.28648402,114450.0,114440.0,0.03516]
[1757563073910,1.28648402,114450.0,114440.0,0.12592402]
[1757563074313,1.19572,114450.0,114440.0,0.12592402]
[1757563075318,1.19468,114450.0,114440.0,0.03516]
[1757563075607,1.19468,114450.0,114440.0,0.23460039]
[1757563078616,0.3628,114450.0,114440.0,0.23460039]
[1757563078914,0.83212,114450.0,114440.0,0.403229]
[1757563079110,0.83212,114450.0,114440.0,0.33536441]
[1757563079317,0.83212,114450.0,114440.0,0.22668804]
[1757563079722,0.83212,114450.0,114440.0,0.04516]
[1757563080015,0.83212,114450.0,114440.0,0.13592402]
[1757563080918,0.83212,114450.0,114440.0,0.04516]
[1757563081113,0.83212,114450.0,114440.0,0.21379507]
[1757563082711,0.83212,114450.0,114440.0,0.13592402]
[1757563083711,0.83212,114450.0,114440.0,0.24460039]
[1757563083916,0.83212,114450.0,114440.0,0.15379637]
[1757563084115,0.83212,114450.0,114440.0,0.24456039]
[1757563084420,0.83212,114450.0,114440.0,0.13588402]
[1757563085219,0.83212,114450.0,114440.0,0.21382494]
[1757563086321,0.83212,114450.0,114440.0,0.13588402]
[1757563086524,0.83212,114450.0,114440.0,0.22664804]
[1757563086714,0.83212,114450.0,114440.0,0.13588402]
[1757563087616,0.7141348,114450.0,114440.0,0.13588402]
[1757563088419,0.7141348,114450.0,114440.0,0.04512]
[1757563088619,0.7141348,114450.0,114440.0,0.13588402]
[1757563088915,0.02074176,114460.0,114450.0,0.03591]
[1757563089116,0.85062176,114460.0,114450.0,0.12667402]
[1757563089316,0.85062176,114460.0,114450.0,0.37667402]
[1757563089822,0.85062176,114460.0,114450.0,0.93747402]
[1757563090219,0.85062176,114460.0,114450.0,1.09402356]
[1757563090420,0.85162176,114460.0,114450.0,1.09402356]
[1757563090823,0.94238578,114460.0,114450.0,0.39245954]
[1757563091022,1.21242176,114460.0,114450.0,0.14536753]
[1757563091331,1.21342176,114460.0,114450.0,0.14536753]
[1757563091526,1.21342176,114460.0,114450.0,0.23613155]
[1757563092431,1.34948055,114460.0,114450.0,0.28142632]
[1757563092630,1.34948055,114460.0,114450.0,0.17232879]
[1757563093015,1.34948055,114460.0,114450.0,0.50142632]
[1757563093423,1.34948055,114460.0,114450.0,0.39232879]
[1757563093816,1.21342176,114460.0,114450.0,0.39232879]
[1757563094018,1.34948055,114460.0,114450.0,0.39232879]
[1757563094732,1.21342176,114460.0,114450.0,0.39232879]
[1757563094936,1.34948055,114460.0,114450.0,0.39232879]
[1757563095235,0.98868055,114460.0,114450.0,0.39232879]
[1757563095528,0.98868055,114460.0,114450.0,0.50142632]
[1757563095824,0.85058176,114460.0,114450.0,0.50142632]
[1757563096018,0.85058176,114460.0,114450.0,0.39232879]
[1757563097036,0.02274176,114460.0,114450.0,0.39232879]
[1757563097224,0.85006176,114460.0,114450.0,0.75312879]
[1757563098533,0.85006176,114460.0,114450.0,0.61707]
[1757563098734,0.98612055,114460.0,114450.0,0.75312879]
[1757563098933,0.85006176,114460.0,114450.0,0.75312879]
[1757563099834,0.85006176,114460.0,114450.0,0.8621426]
[1757563100032,0.85006176,114460.0,114450.0,0.72608381]
[1757563100230,0.85006176,114460.0,114450.0,0.25627]
[1757563100631,1.34692055,114460.0,114450.0,0.39232879]
[1757563101032,1.34692055,114460.0,114450.0,0.50134545]
[1757563101232,0.98612055,114460.0,114450.0,0.50134545]
[1757563101434,1.34692055,114460.0,114450.0,0.36528666]
[1757563101634,0.98612055,114460.0,114450.0,0.50134545]
[1757563102039,0.85042176,114460.0,114450.0,0.86214545]
[1757563102240,0.85042176,114460.0,114450.0,0.75312879]
[1757563103135,0.02274176,114460.0,114450.0,0.75312879]
[1757563103342,0.002,114460.0,114450.0,1.34653958]
[1757563103536,0.82904,114460.0,114450.0,1.34653958]
[1757563103936,0.96509879,114460.0,114450.0,1.27931833]
[1757563104136,0.002,114460.0,114450.0,1.27931833]
[1757563104338,0.82992,114460.0,114450.0,1.41537712]
[1757563104538,0.002,114460.0,114450.0,1.50272912]
[1757563104742,0.82984,114460.0,114450.0,1.75272912]
[1757563105437,0.82984,114460.0,114450.0,1.48061154]
[1757563105742,0.82984,114460.0,114450.0,1.75272912]
[1757563106242,0.002,114460.0,114450.0,1.75272912]
[1757563106439,0.8292,114460.0,114450.0,1.59653958]
[1757563106943,0.829,114460.0,114450.0,1.59653958]
[1757563107242,0.829,114460.0,114450.0,1.75272912]
[1757563108048,2.25985879,114480.0,114460.0,0.01344]
[1757563108049,0.001,114480.0,114460.0,0.01344]
[1757563108243,0.828,114480.0,114470.0,0.27969137]
[1757563108444,0.828,114480.0,114470.0,0.48969137]
[1757563108750,0.828,114480.0,114470.0,0.74153879]
[1757563108948,0.96405879,114480.0,114470.0,0.38073879]
[1757563109142,0.96405879,114480.0,114470.0,0.74153879]
[1757563109340,0.831,114480.0,114470.0,0.38073879]
[1757563110143,0.83981885,114480.0,114470.0,0.38073879]
[1757563110348,0.83881885,114480.0,114470.0,0.38073879]
[1757563110747,0.97487764,114480.0,114470.0,0.17073879]
[1757563111242,0.97487764,114480.0,114470.0,0.03468]
[1757563111435,0.97687764,114480.0,114470.0,0.17073879]
[1757563111841,0.97687764,114480.0,114470.0,0.27957775]
[1757563112044,0.97687764,114480.0,114470.0,0.14351896]
[1757563112234,0.97687764,114480.0,114470.0,0.27957775]
[1757563112950,1.04728976,114480.0,114470.0,0.27957775]
[1757563113341,1.04616976,114480.0,114470.0,0.27957775]
[1757563113541,0.91011097,114480.0,114470.0,0.14351896]
[1757563113741,1.04616976,114480.0,114470.0,0.27957775]
[1757563114656,0.91011097,114480.0,114470.0,0.27957775]
[1757563114950,1.04616976,114480.0,114470.0,0.27957775]
[1757563115641,0.91011097,114480.0,114470.0,0.27957775]
[1757563116040,1.04616976,114480.0,114470.0,0.27957775]
[1757563116351,1.04616976,114480.0,114470.0,0.28830775]
[1757563116552,1.04616976,114480.0,114470.0,0.17946879]
[1757563117053,0.91011097,114480.0,114470.0,0.28831174]
[1757563117244,1.04616976,114480.0,114470.0,0.28831174]
[1757563117444,1.04616976,114480.0,114470.0,0.17946879]
[1757563117646,1.79302855,114480.0,114470.0,0.02217]
[1757563117842,0.96714855,114480.0,114470.0,0.02997]
[1757563118049,0.90823097,114480.0,114470.0,0.42438176]
[1757563118352,0.90823097,114480.0,114470.0,0.28832297]
[1757563119958,1.04428976,114480.0,114470.0,0.28832297]
[1757563120159,1.40508976,114480.0,114470.0,0.28832297]
[1757563121260,1.40508976,114480.0,114470.0,0.17946879]
[1757563121853,1.65508976,114480.0,114470.0,0.17946879]
[1757563122055,1.29428976,114480.0,114470.0,0.17946879]
[1757563122354,1.65508976,114480.0,114470.0,0.17946879]
[1757563122756,1.51903097,114480.0,114470.0,0.04341]
[1757563122957,1.51903097,114480.0,114470.0,0.17946879]
[1757563122958,1.65508976,114480.0,114470.0,0.17946879]
[1757563124061,1.51903097,114480.0,114470.0,0.17946879]
[1757563124262,1.65508976,114480.0,114470.0,0.17946879]
[1757563124863,1.51903097,114480.0,114470.0,0.17946879]
[1757563125065,1.65508976,114480.0,114470.0,0.17946879]
[1757563125368,1.51903097,114480.0,114470.0,0.17946879]
[1757563125565,1.65508976,114480.0,114470.0,0.17946879]
[1757563126368,1.65508976,114480.0,114470.0,0.04341]
[1757563126666,1.65508976,114480.0,114470.0,0.15226418]
[1757563127056,1.51903097,114480.0,114470.0,0.28832297]
[1757563127261,1.65508976,114480.0,114470.0,0.28832297]
[1757563127456,1.65508976,114480.0,114470.0,0.15226418]
[1757563127662,1.65508976,114480.0,114470.0,0.13102418]
[1757563128170,1.54114855,114480.0,114470.0,0.13102418]
[1757563128368,1.54114855,114480.0,114470.0,0.26708297]
[1757563128858,1.54114855,114480.0,114470.0,0.13102418]
[1757563129059,1.79114855,114480.0,114470.0,0.20886285]
[1757563129271,1.79114855,114480.0,114470.0,0.10000867]
[1757563129563,1.79114855,114480.0,114470.0,0.08656867]
[1757563129764,1.79114855,114480.0,114470.0,0.11758418]
[1757563130458,1.79114855,114480.0,114470.0,0.00873]
[1757563131567,1.51903097,114480.0,114470.0,0.00873]
[1757563131767,1.79114855,114480.0,114470.0,0.0865992]
[1757563133567,1.79114855,114480.0,114470.0,0.00873]
[1757563134067,1.51903097,114480.0,114470.0,0.00873]
[1757563134269,1.79114855,114480.0,114470.0,0.00873]
[1757563136066,0.08423097,114480.0,114470.0,0.76249418]
[1757563136260,0.90439097,114480.0,114470.0,1.03461176]
[1757563136458,0.90439097,114480.0,114470.0,0.78969879]
[1757563136970,0.90439097,114480.0,114470.0,0.65364]
[1757563137270,0.90439097,114480.0,114470.0,0.78969879]
[1757563137774,0.90439097,114480.0,114470.0,0.65364]
[1757563137977,0.90439097,114480.0,114470.0,0.78969879]
[1757563138160,0.90439097,114480.0,114470.0,0.65364]
[1757563138366,0.90439097,114480.0,114470.0,0.78969879]
[1757563138871,0.90439097,114480.0,114470.0,1.00969879]
[1757563139671,0.90439097,114480.0,114470.0,1.14575758]
[1757563139872,0.90439097,114480.0,114470.0,1.00969879]
[1757563140473,0.90439097,114480.0,114470.0,0.87364]
[1757563140675,0.90439097,114480.0,114470.0,1.00969879]
[1757563141174,0.90439097,114480.0,114470.0,1.25472996]
[1757563141775,0.90439097,114480.0,114470.0,1.11867117]
[1757563142476,0.90439097,114480.0,114470.0,1.25472996]
[1757563142676,0.90439097,114480.0,114470.0,1.14575758]
[1757563143477,0.90439097,114480.0,114470.0,1.00969879]
[1757563143674,0.90439097,114480.0,114470.0,1.14575758]
[1757563146680,0.90439097,114480.0,114470.0,1.25472946]
[1757563147078,0.90439097,114480.0,114470.0,1.14575758]
[1757563149376,0.90251097,114480.0,114470.0,1.14575758]
[1757563150882,0.08423097,114480.0,114470.0,1.14575758]
[1757563151083,0.90231097,114480.0,114470.0,1.43575758]
[1757563152175,0.90195097,114480.0,114470.0,1.52309378]
[1757563152982,0.90195097,114480.0,114470.0,1.43575758]
[1757563153283,0.90195097,114480.0,114470.0,1.54470352]
[1757563153582,0.90195097,114480.0,114470.0,1.43575758]
[1757563153784,0.90195097,114480.0,114470.0,1.20470029]
[1757563154279,0.89395097,114480.0,114470.0,0.91429857]
[1757563155185,0.89395097,114480.0,114470.0,0.82364]
[1757563155483,0.89395097,114480.0,114470.0,0.91429857]
[1757563155884,0.89395097,114480.0,114470.0,1.02324128]
[1757563156085,0.07623097,114480.0,114470.0,1.02324128]
[1757563156285,0.89307097,114480.0,114470.0,1.02324128]
[1757563156582,0.89307097,114480.0,114470.0,0.91429857]
[1757563156782,0.89307097,114480.0,114470.0,1.02323736]
[1757563157785,0.07623097,114480.0,114470.0,1.11057396]
[1757563157991,0.89263097,114480.0,114470.0,1.02323736]
[1757563160687,0.89263097,114480.0,114470.0,1.11389593]
[1757563161282,0.89263097,114480.0,114470.0,1.02323736]
[1757563162084,0.89263097,114480.0,114470.0,0.66429857]
[1757563162695,0.89263097,114480.0,114470.0,0.57364]
[1757563162900,0.89263097,114480.0,114470.0,0.66429857]
[1757563163699,0.89263097,114480.0,114470.0,0.57364]
[1757563163998,0.89263097,114480.0,114470.0,0.30349857]
[1757563164599,0.89263097,114480.0,114470.0,0.21284]
[1757563164796,0.89263097,114480.0,114470.0,0.30349857]
[1757563165094,0.89263097,114480.0,114470.0,0.21284]
[1757563165399,0.89263097,114480.0,114470.0,0.30349857]
[1757563165598,0.89263097,114480.0,114470.0,0.21284]
[1757563165900,0.89263097,114480.0,114470.0,0.45968811]
[1757563166701,0.89263097,114480.0,114470.0,0.30349857]
[1757563169500,0.89263097,114480.0,114470.0,0.21284]
[1757563169800,0.89263097,114480.0,114470.0,0.13407857]
[1757563170201,1.25343097,114480.0,114470.0,0.13407857]
[1757563170696,0.89263097,114480.0,114470.0,0.13407857]
[1757563171002,0.89263097,114480.0,114470.0,0.24319521]
[1757563171700,0.89263097,114480.0,114470.0,0.15253664]
[1757563171896,1.25343097,114480.0,114470.0,0.24319521]
[1757563172096,0.89263097,114480.0,114470.0,0.24319521]
[1757563172297,1.59408954,114480.0,114470.0,0.24319521]
[1757563172905,1.59408954,114480.0,114470.0,0.25319521]
[1757563173303,1.50343097,114480.0,114470.0,0.24319521]
[1757563173796,0.68703097,114480.0,114470.0,0.24319521]
[1757563174001,1.13995097,114480.0,114470.0,0.24319521]
[1757563174301,1.50075097,114480.0,114470.0,0.13407857]
[1757563175005,1.50075097,114480.0,114470.0,0.14407857]
[1757563176009,1.59140954,114480.0,114470.0,0.12231857]
[1757563176301,0.32623097,114480.0,114470.0,0.14407857]
[1757563176501,1.13999097,114480.0,114470.0,0.14407857]
[1757563177510,0.32623097,114480.0,114470.0,0.14407857]
[1757563177810,1.13967097,114480.0,114470.0,0.14407857]
[1757563178510,0.32623097,114480.0,114470.0,0.14407857]
[1757563178708,1.13959097,114480.0,114470.0,0.14407857]
[1757563179310,0.88959097,114480.0,114470.0,0.14407857]
[1757563180505,0.88959097,114480.0,114470.0,0.12782737]
[1757563180704,1.50039097,114480.0,114470.0,0.06963406]
[1757563180899,1.77236668,114480.0,114470.0,0.01388]
[1757563181210,1.68170811,114480.0,114470.0,0.01388]
[1757563182411,1.68146811,114480.0,114470.0,0.01388]
[1757563183112,0.86834811,114480.0,114470.0,0.01388]
[1757563183306,1.68146811,114480.0,114470.0,0.01388]
[1757563186214,0.86834811,114480.0,114470.0,0.01388]
[1757563186415,1.34000954,114480.0,114470.0,0.03564]
[1757563186616,1.43066811,114480.0,114470.0,0.03564]
[1757563186914,1.43066811,114480.0,114470.0,0.01388]
[1757563187506,0.61834811,114480.0,114470.0,0.01388]
[1757563187711,1.43066811,114480.0,114470.0,0.01388]
[1757563189710,1.24935097,114480.0,114470.0,0.01388]
[1757563189912,1.43066811,114480.0,114470.0,0.01388]
[1757563190714,3.44242811,114480.0,114470.0,0.01388]
[1757563191516,3.44186811,114480.0,114470.0,0.01388]
[1757563193123,3.19186811,114480.0,114470.0,0.01388]
[1757563199421,2.38010811,114480.0,114470.0,0.01388]
[1757563199720,3.19050811,114480.0,114470.0,0.01388]
[1757563200923,3.00919097,114480.0,114470.0,0.01388]
[1757563201225,2.38010811,114480.0,114470.0,0.01388]
[1757563201521,3.09944954,114480.0,114470.0,0.03704]
[1757563201921,2.38010811,114480.0,114470.0,0.03704]
[1757563202224,3.19010811,114480.0,114470.0,0.03704]
[1757563202623,2.38010811,114480.0,114470.0,0.03704]
[1757563202824,3.19002811,114480.0,114470.0,0.03704]
[1757563203225,3.19002811,114480.0,114470.0,0.0349809]
[1757563203918,2.38010811,114480.0,114470.0,0.0349809]
[1757563204231,3.18986811,114480.0,114470.0,0.0349409]
[1757563205931,3.18986811,114480.0,114470.0,0.0117809]
[1757563206517,3.53052668,114480.0,114460.0,0.09204468]
[1757563206818,0.54211714,114470.0,114460.0,0.01424]
[1757563208229,0.54311714,114470.0,114460.0,0.01424]
[1757563208423,0.3618,114470.0,114460.0,0.01424]
[1757563208626,0.54411714,114470.0,114460.0,0.01424]
[1757563211023,0.3628,114470.0,114460.0,0.01424]
[1757563211225,1.26277857,114470.0,114460.0,0.01424]
[1757563211627,1.35343714,114470.0,114460.0,0.01424]
[1757563214540,1.17212,114470.0,114460.0,0.01424]
[1757563214742,1.35343714,114470.0,114460.0,0.01424]
[1757563215942,1.17212,114470.0,114460.0,0.01424]
[1757563216238,1.35343714,114470.0,114460.0,0.01424]
[1757563216437,1.44433038,114470.0,114460.0,0.01424]
[1757563216634,1.83043557,114470.0,114460.0,0.01424]
[1757563216942,1.69433038,114470.0,114460.0,0.01424]
[1757563218332,1.83043557,114470.0,114460.0,0.01424]
[1757563219033,1.83043557,114470.0,114460.0,0.01347]
[1757563219233,1.83043557,114470.0,114460.0,0.01343]
[1757563220040,1.83043557,114470.0,114440.0,0.01267]
[1757563220235,0.13610519,114460.0,114450.0,0.01347]
[1757563220434,0.85770519,114460.0,114450.0,0.01347]
[1757563221040,0.7216,114460.0,114450.0,0.01347]
[1757563221235,1.12991557,114460.0,114450.0,0.01347]
[1757563223445,1.26059887,114460.0,114450.0,0.01347]
[1757563223638,1.26059887,114460.0,114450.0,0.01306]
[1757563223843,1.51059887,114460.0,114450.0,0.01306]
[1757563224340,1.86075064,114460.0,114430.0,0.00414061]
[1757563224645,0.7216,114440.0,114430.0,0.00414061]
[1757563224843,1.15024057,114440.0,114430.0,0.00414061]
[1757563225042,1.01413538,114440.0,114430.0,0.00414061]
[1757563225237,1.15024057,114440.0,114430.0,0.00414061]
[1757563225544,0.741925,114440.0,114430.0,0.00414061]